{"text_format":"2","workbook":"xlsx","n_sheets":1,"sheets":["Munka1"],"not_rendered":{"charts":0,"images":0,"macros":0,"external_links":0,"defined_names":0,"comments":0,"pivot_tables":0},"unopened":[],"bounds":{"document_bytes":16777216,"sheet_cells":100000,"run_cost":"one","rows_first":2000,"rows_last":500,"rows_between":2000,"halvings":0,"cell_chars":16384,"cell_head_chars":4096},"cells_cut":0,"cells_raw":0,"read":"whole","date_system":"1900"}

{"sheet":"Munka1","index":0,"n_rows":26,"n_cols":7,"rows_kept":26,"cut":false,"hidden":false,"merged":[[0,0,0,6],[1,0,1,6]]}
["SZTE Liliom u. -i vendégház kazán cseréje, HMV tároló felhelyezése"]
["Árajánlat"]
[]
["Megnevezés","Menny.","Egység","Anyag egységár","Díj egységre","Anyag összesen","Díj összesen"]
[]
["Tervezés:"]
["Gázellátás tervdokumentáció és kéményméretezés elkészítése, engedélyeztetés, nyomáspróba, gázátadás",1,"klt",null,null,{"$f":"B7*D7","v":0},{"$f":"B7*E7","v":0}]
["Kivitelezés:"]
["Bontási munkák elvégzése, bontott anyagok elszállítása",1,"klt",null,null,{"$f":"B9*D9","v":0},{"$f":"B9*E9","v":0}]
["Égéstermék elvezetés, beszerzés és telepítés, komplett",1,"klt",null,null,0,0]
["Fűtés szerelés (anyag mozgatásokkal együtt)",1,"klt",null,null,0,0]
["Cseppvíz szerelés",1,"klt",null,null,0,0]
["Villanyszerelés, EPH kialakítás",1,"klt",null,null,0,0]
["20 kW hőcserélő, 35 l tágulási tartály,  szivattyú",1,"klt",null,null,0,0]
["Beüzemelés",1,"klt",null,null,0,0]
["Főbb felhasznált anyagok"]
["Viessmann Vitodens 100; 26 kW kazán telepítve (vagy műszakilag egyenértékű)",1,"db",null,null,0,0]
["Viessmann Vitocell – 100 W 120 literes indirekt tároló (vagy műszakilag egyenértékű)",1,"db",null,null,0,0]
[]
[]
[{"$nulls":5},{"$f":"SUM(F7:F18)","v":0},{"$f":"SUM(G7:G19)","v":0}]
["Összesen (nettó Ft):"]
[]
["Mindösszesen anyag és díj (nettó):",{"$f":"F21+G21","v":0},"Ft"]
["ÁFA:",{"$f":"B24*0.27","v":0},"Ft"]
["Mindösszesen anyag és díj (bruttó):",{"$f":"B24+B25","v":0},"Ft"]